bitfinex-derivatives/quotes_BNBF0:USTF0_20250329
["timestamp","ask_amount","ask_price","bid_price","bid_amount"]
[1743269951818,1.09088202,602.67,601.97,1.24374785]
[1743269952212,1.09088202,602.66,601.97,1.24374785]
[1743269952816,1.09088202,602.66,602.03,1.24374785]
[1743269953217,1.09088202,602.65,602.03,1.24374785]
[1743269953917,1.09088202,602.64,602.03,1.24374785]
[1743269954418,1.482,602.7,602.03,1.24374785]
[1743269954815,1.37838971,602.69,602.03,1.24374785]
[1743269955019,1.37838971,602.68,602.03,1.24374785]
[1743269955217,1.37838971,602.67,602.03,1.24374785]
[1743269955412,1.37838971,602.67,601.95,0.28889138]
[1743269955413,1.37838971,602.66,602.05,1.24374785]
[1743269955619,1.37838971,602.65,602.05,1.24374785]
[1743269955815,2.83948023,602.66,602.05,1.24374785]
[1743269956119,2.83948023,602.65,602.05,1.24374785]
[1743269956814,2.83948023,602.65,601.81,0.28892736]
[1743269957019,2.83948023,602.64,601.81,0.28892736]
[1743269957621,1.09210778,602.63,601.81,0.28892736]
[1743269958017,1.09210778,602.62,601.81,0.28892736]
[1743269958618,1.74858378,602.69,601.81,0.28892736]
[1743269958922,2.47220005,602.68,601.81,0.28892736]
[1743269959116,1.3793264,602.67,601.81,0.28892736]
[1743269959322,1.3793264,602.66,601.81,0.28892736]
[1743269959521,1.3793264,602.65,601.81,0.28892736]
[1743269959821,2.43887365,602.66,601.81,0.28892736]
[1743269960418,1.346,602.66,601.81,0.28892736]
[1743269962823,1.346,602.66,601.74,1.24374785]
[1743269963123,1.346,602.66,601.81,0.28892496]
[1743269964624,1.346,602.66,601.82,0.33232527]
[1743269966021,1.346,602.66,601.97,1.24374785]
[1743269966226,1.223,602.65,601.97,1.24374785]
[1743269967424,1.223,602.65,602.03,1.24374785]
[1743269968623,0.95,602.64,601.83,1.24374785]
[1743269972732,0.95,602.64,601.82,0.62123464]
[1743269972733,0.95,602.64,601.99,1.24374785]
[1743269974637,1.09240815,602.63,601.99,1.24374785]
[1743269975231,2.47129043,602.62,601.99,1.24374785]
[1743269975435,1.37888228,602.61,601.99,1.24374785]
[1743269975635,1.37888228,602.6,601.99,1.24374785]
[1743269975833,1.09240815,602.6,601.99,1.24374785]
[1743269976032,1.09240815,602.6,601.82,0.62123464]
[1743269976232,1.09240815,602.59,601.82,0.62123464]
[1743269976939,0.95,602.64,601.82,0.62123464]
[1743269977840,0.95,602.64,601.92,1.24374785]
[1743269979440,0.95,602.64,601.82,0.62120826]
[1743269979441,0.95,602.64,601.96,1.24374785]
[1743269980142,0.95,602.64,601.97,0.33224247]
[1743269980537,0.95,602.64,602.31,1.24374785]
[1743269982246,0.95,602.64,602.3,1.24374785]
[1743269984046,0.95,602.64,602.24,1.24374785]
[1743269985745,0.95,602.64,602.29,1.24374785]
[1743269987453,0.95,602.64,602.23,1.24374785]
[1743269987856,0.95,602.64,602.24,0.33209351]
[1743269991357,1.383,602.63,602.24,0.33209351]
[1743270000966,1.424,602.62,602.24,0.33209351]
[1743270003862,1.424,602.62,602.24,1.57584136]
[1743270005266,1.334,602.61,602.24,1.57584136]
[1743270005667,1.334,602.61,602.29,1.24374785]
[1743270006168,1.372,602.6,602.29,1.24374785]
[1743270006667,1.372,602.6,602.3,0.33206043]
[1743270012476,1.372,602.6,602.31,1.24374785]
[1743270013074,1.372,602.6,602.32,0.3320494]
[1743270014075,1.372,602.6,602.54,1.24374785]
[1743270015775,1.372,602.6,602.32,0.3320494]
[1743270017782,1.372,602.6,602.3,1.24374785]
[1743270018983,1.372,602.6,602.28,0.28877631]
[1743270019783,1.372,602.6,602.16,1.24374785]
[1743270020182,1.372,602.6,602.28,0.28879309]
[1743270020376,1.372,602.6,602.16,1.24374785]
[1743270020580,1.372,602.6,602.16,1.57588548]
[1743270020783,1.372,602.6,602.28,0.2887811]
[1743270020982,1.372,602.6,602.2,1.24374785]
[1743270021385,1.372,602.6,602.28,0.28877631]
[1743270021584,1.372,602.6,602.2,1.24374785]
[1743270022086,1.372,602.6,602.28,0.28877631]
[1743270022285,1.372,602.6,602.37,1.24374785]
[1743270023788,1.372,602.6,602.35,1.24374785]
[1743270024185,1.707,602.59,602.35,1.24374785]
[1743270025690,1.5,602.58,602.3,1.24374785]
[1743270027289,1.5,602.58,602.23,1.24374785]
[1743270028090,2.621,602.58,602.23,1.24374785]
[1743270028993,2.621,602.58,602.17,0.28881226]
[1743270031999,2.621,602.58,602.16,0.33213763]
[1743270032193,2.621,602.58,602.17,0.28882904]
[1743270034696,2.621,602.58,602.16,0.33213763]
[1743270035099,2.621,602.58,602.17,0.28880507]
[1743270035903,2.621,602.58,602.19,1.24374785]
[1743270036900,2.621,602.58,602.18,1.24374785]
[1743270038705,2.621,602.58,602.16,0.33213763]
[1743270041209,2.621,602.58,602.12,0.28885301]
[1743270044012,3.931,602.58,602.1,1.24374785]
[1743270047010,3.931,602.58,602.08,1.24374785]
[1743270049514,3.931,602.58,602.07,0.2888674]
[1743270055918,3.931,602.58,602.16,1.24374785]
[1743270058121,3.931,602.58,602.32,1.24374785]
[1743270059728,3.931,602.58,602.36,1.24374785]
[1743270060123,1.5,602.58,602.36,1.24374785]
[1743270061331,1.5,602.58,602.29,1.24374785]
[1743270062728,2.66,602.58,602.29,1.24374785]
[1743270062928,4.014,602.58,602.29,1.24374785]
[1743270063530,4.014,602.58,602.25,1.24374785]
[1743270065434,4.014,602.58,602.16,0.28882065]
[1743270065733,4.014,602.58,602.12,1.24374785]
[1743270067334,4.014,602.58,602.04,0.28887939]
[1743270068335,4.014,602.58,601.88,1.24374785]
[1743270068531,4.014,602.58,601.92,0.28893455]
[1743270069332,4.014,602.58,601.98,1.24374785]
[1743270070533,4.014,602.58,601.92,0.28893455]
[1743270072935,4.014,602.58,601.68,1.24374785]
[1743270073131,4.014,602.58,601.8,0.28899214]
[1743270073432,1.08999384,602.57,601.68,1.24374785]
[1743270073736,4.014,602.58,601.8,0.28897774]
[1743270074131,4.014,602.58,601.68,1.24374785]
[1743270074432,4.014,602.58,601.8,0.28897774]
[1743270074641,4.014,602.58,601.63,1.24374785]
[1743270075034,4.014,602.58,601.8,0.28897774]
[1743270075230,4.014,602.58,601.63,1.24374785]
[1743270075634,4.014,602.58,601.8,0.28898374]
[1743270075831,1.08956075,602.57,601.8,0.28898374]
[1743270076031,1.08956075,602.57,601.63,1.24374785]
[1743270076233,1.08956075,602.57,601.8,0.28898374]
[1743270076430,1.37517269,602.56,601.8,0.28898374]
[1743270076634,1.37517269,602.55,601.63,1.24374785]
[1743270076838,1.37517269,602.54,601.8,0.28898614]
[1743270077038,1.37517269,602.53,601.8,0.28898614]
[1743270077238,1.08960409,602.52,601.63,1.24374785]
[1743270077641,1.08960409,602.52,601.8,0.28898974]
[1743270077841,1.08960409,602.51,601.63,1.24374785]
[1743270078141,1.08960409,602.5,601.86,1.24374785]
[1743270078839,4.014,602.58,601.86,1.24374785]
[1743270079040,1.37504578,602.57,601.86,1.24374785]
[1743270079241,1.37504578,602.56,601.86,1.24374785]
[1743270079445,1.37504578,602.55,601.82,0.28896574]
[1743270079641,1.37504578,602.54,601.82,0.28896574]
[1743270079841,1.37504578,602.53,601.68,1.24374785]
[1743270080038,1.37504578,602.52,601.68,1.24374785]
[1743270080242,3.57513989,602.51,601.8,0.28899094]
[1743270080543,6.40733459,602.5,601.68,1.24374785]
[1743270080744,3.57458677,602.49,601.74,0.28901254]
[1743270080942,3.57458677,602.48,601.74,0.28901254]
[1743270081145,1.37504578,602.47,601.74,0.28901254]
[1743270081443,1.37504578,602.46,601.74,0.28901254]
[1743270081644,1.37504578,602.45,601.74,0.28901254]
[1743270081846,2.83274782,602.46,601.74,0.28901254]
[1743270082145,1.37435474,602.45,601.74,0.28901254]
[1743270082446,1.37435474,602.44,601.74,0.28901254]
[1743270082644,1.37435474,602.43,601.74,0.28901254]
[1743270082847,2.46387313,602.42,601.74,0.28901254]
[1743270083041,1.08951839,602.42,601.74,0.28901254]
[1743270083646,1.08951839,602.41,601.74,0.28901254]
[1743270084242,1.37396044,602.54,601.74,0.28901254]
[1743270084442,1.37396044,602.53,601.74,0.28901254]
[1743270084646,1.37396044,602.52,601.36,1.24374785]
[1743270084845,1.37396044,602.51,601.67,0.28906536]
[1743270085048,1.37396044,602.5,601.67,0.28906536]
[1743270085245,1.37396044,602.49,601.37,0.33257395]
[1743270085445,1.08855065,602.5,601.37,0.33257395]
[1743270085446,1.37396044,602.48,601.37,0.33257395]
[1743270085652,1.37333166,602.47,601.67,0.28906776]
[1743270085948,1.37333166,602.46,601.37,0.33257395]
[1743270086147,2.22855065,602.46,601.67,0.28907136]
[1743270086344,1.37299485,602.45,601.67,0.28907136]
[1743270086549,2.22855065,602.46,601.37,0.33257395]
[1743270086749,2.46156463,602.45,601.67,0.28907256]
[1743270086949,1.37301398,602.44,601.67,0.28907256]
[1743270087150,1.08855065,602.45,601.37,0.33257395]
[1743270087351,1.37296186,602.44,601.67,0.28907376]
[1743270087551,1.37296186,602.43,601.67,0.28907376]
[1743270087751,2.51255065,602.44,601.37,0.33257395]
[1743270087947,2.51255065,602.44,601.67,0.28907496]
[1743270088145,1.08855065,602.43,601.67,0.28907496]
[1743270088350,1.08855065,602.43,601.37,0.33257395]
[1743270088553,1.555,602.42,601.67,0.28907616]
[1743270089051,1.08855065,602.41,601.37,0.33257395]
[1743270089251,1.08855065,602.41,601.67,0.28907736]
[1743270089451,1.08855065,602.41,601.37,0.33257395]
[1743270089851,1.08855065,602.4,601.67,0.28907856]
[1743270090249,1.555,602.42,601.37,0.33257395]
[1743270090250,1.08855065,602.39,601.37,0.33257395]
[1743270090450,1.08855065,602.39,601.66,0.28908216]
[1743270090851,1.08855065,602.39,601.37,0.33257395]
[1743270091053,1.08855065,602.38,601.66,0.28908336]
[1743270091353,1.08855065,602.38,601.37,0.33257395]
[1743270091748,1.37144005,602.37,601.63,0.28909177]
[1743270091947,1.37144005,602.36,601.37,0.33257395]
[1743270092248,1.37144005,602.35,601.63,0.28909297]
[1743270092552,1.37144005,602.34,601.37,0.33257395]
[1743270092748,1.37144005,602.33,601.37,0.33257395]
[1743270093053,1.08855065,602.32,601.63,0.28909537]
[1743270093253,1.08855065,602.32,601.37,0.33257395]
[1743270093454,1.08855065,602.32,601.38,0.28913861]
[1743270093754,1.08855065,602.31,601.38,0.28913861]
[1743270094356,1.08855065,602.3,601.38,0.28913861]
[1743270094747,1.08855065,602.3,601.37,0.33257395]
[1743270094948,1.08855065,602.29,601.37,0.33257395]
[1743270095248,1.08855065,602.29,601.38,0.28911339]
[1743270095453,1.37122644,602.28,601.38,0.28911339]
[1743270095649,1.37122644,602.27,601.38,0.28911339]
[1743270095855,1.37122644,602.26,601.38,0.28911339]
[1743270096055,1.37122644,602.25,601.38,0.28911339]
[1743270096356,3.56484221,602.24,601.38,0.28911339]
[1743270096653,6.39218613,602.23,601.38,0.28911339]
[1743270096850,3.56483314,602.22,601.38,0.28911339]
[1743270097048,3.56483314,602.21,601.38,0.28911339]
[1743270097249,1.37108967,602.2,601.38,0.28911339]
[1743270097447,1.37108967,602.19,601.38,0.28911339]
[1743270097648,3.5641625,602.18,601.38,0.28911339]
[1743270097854,3.56423941,602.17,601.38,0.28911339]
[1743270098057,1.37108967,602.16,601.38,0.28911339]
[1743270098255,1.37108967,602.15,601.38,0.28911339]
[1743270098557,1.37108967,602.14,601.38,0.28911339]
[1743270098752,2.8272679,602.15,601.38,0.28911339]
[1743270099153,2.19215851,602.33,601.38,0.28911339]
[1743270099349,3.562257,602.32,601.38,0.28911339]
[1743270099549,3.562257,602.31,601.38,0.28911339]
[1743270099754,3.562257,602.3,601.38,0.28911339]
[1743270099955,1.37009849,602.29,601.38,0.28911339]
[1743270100256,1.37009849,602.28,601.38,0.28911339]
[1743270100457,1.37009849,602.27,601.38,0.28911339]
[1743270100757,1.37009849,602.26,601.38,0.28911339]
[1743270101053,3.56112794,602.25,601.37,0.33257395]
[1743270101253,1.37009849,602.24,601.38,0.28916504]
[1743270101452,1.37009849,602.23,601.38,0.28916504]
[1743270101752,1.08538662,602.22,601.38,0.28916504]
[1743270102353,1.73552111,602.36,601.38,0.28916504]
[1743270102554,3.55840516,602.35,601.38,0.28916504]
[1743270102756,3.55840516,602.34,601.38,0.28916504]
[1743270102958,1.36861737,602.33,601.38,0.28916504]
[1743270103259,1.36861737,602.32,601.38,0.28916504]
[1743270103459,1.36861737,602.31,601.38,0.28916504]
[1743270103659,2.82002308,602.34,601.38,0.28916504]
[1743270103861,1.08450197,602.31,601.37,0.33257395]
[1743270104055,1.08450197,602.31,601.38,0.28911459]
[1743270104361,1.08450197,602.33,601.38,0.28911459]
[1743270104859,1.08450197,602.32,601.38,0.28911459]
[1743270105252,0.9835277,602.84,601.38,0.28911459]
[1743270105253,1.73469371,602.41,601.38,0.62168301]
[1743270105759,0.9835277,602.9,601.38,0.62168301]
[1743270105760,5.30570249,602.4,601.38,0.62168301]
[1743270105959,4.22154142,602.39,601.38,0.62168301]
[1743270106153,3.5574251,602.38,601.38,0.62168301]
[1743270106353,3.5574251,602.37,601.38,0.62168301]
[1743270106553,3.5574251,602.36,601.38,0.62168301]
[1743270106755,6.37632265,602.35,601.38,0.62168301]
[1743270107060,6.37632265,602.35,601.38,0.33256842]
[1743270107061,3.5574251,602.34,601.38,0.33256842]
[1743270107257,3.5574251,602.33,601.38,0.62165899]
[1743270107457,2.81889755,602.35,601.38,0.62165899]
[1743270107458,3.5574251,602.32,601.38,0.62165899]
[1743270107653,3.5574251,602.31,601.38,0.62165899]
[1743270107858,3.1029769,602.3,601.38,0.62165899]
[1743270108057,1.36824042,602.29,601.38,0.62165899]
[1743270108261,1.36824042,602.28,601.38,0.62165899]
[1743270108561,1.36824042,602.27,601.38,0.62165899]
[1743270108856,1.36824042,602.26,601.38,0.62165899]
[1743270109060,1.36824042,602.25,601.38,0.62165899]
[1743270109261,1.36824042,602.24,601.38,0.62165899]
[1743270109460,1.36860881,602.23,601.38,0.62165899]
[1743270109763,1.08416107,602.24,601.38,0.62165899]
[1743270110061,1.36862986,602.23,601.38,0.33256842]
[1743270110254,1.08416107,602.23,601.38,0.6216746]
[1743270110761,1.08416107,602.22,601.38,0.6216746]
[1743270111762,1.51392329,602.41,601.38,0.6216746]
[1743270111763,1.08416107,602.21,601.38,0.6216746]
[1743270112063,2.93616107,602.21,601.38,0.6216746]
[1743270112457,1.08416107,602.2,601.38,0.6216746]
[1743270112661,2.38616107,602.2,601.38,0.6216746]
[1743270112960,1.08416107,602.19,601.38,0.33256842]
[1743270113164,1.08416107,602.19,601.43,1.24374785]
[1743270113664,1.302,602.2,601.43,1.24374785]
[1743270114765,1.302,602.2,601.49,1.24374785]
[1743270116160,1.302,602.2,601.53,1.24374785]
[1743270117669,1.302,602.2,601.56,1.24374785]
[1743270119773,1.302,602.2,601.48,0.28908817]
[1743270119774,1.302,602.2,601.52,1.24374785]
[1743270121370,1.302,602.2,601.61,1.24374785]
[1743270123377,1.302,602.2,601.48,0.28912059]
[1743270123378,1.302,602.2,601.56,1.24374785]
[1743270124173,1.08939259,602.19,601.56,1.24374785]
[1743270124672,1.08939259,602.18,601.56,1.24374785]
[1743270125375,1.08939259,602.17,601.56,1.24374785]
[1743270125770,1.08939259,602.16,601.38,0.62171904]
[1743270126073,1.37658911,602.15,601.38,0.62171904]
[1743270126278,1.37658911,602.14,601.38,0.62171904]
[1743270126471,1.265,602.15,601.38,0.62171904]
[1743270126975,1.08939259,602.13,601.38,0.62171904]
[1743270127372,1.08939259,602.12,601.38,0.62171904]
[1743270127673,1.08939259,602.12,601.38,0.28915062]
[1743270127877,1.08939259,602.11,601.38,0.28915062]
[1743270128074,2.04439259,602.11,601.38,0.28915062]
[1743270128578,1.08939259,602.1,601.38,0.28915062]
[1743270128974,0.955,602.11,601.38,0.28915062]
[1743270129279,3.57968977,602.1,601.38,0.28915062]
[1743270129479,3.57968977,602.09,601.38,0.28915062]
[1743270129682,1.37680376,602.08,601.38,0.28915062]
[1743270129878,1.37680376,602.07,601.38,0.28915062]
[1743270130076,1.37680376,602.06,601.38,0.28915062]
[1743270130281,1.37680376,602.05,601.38,0.28915062]
[1743270130483,1.37680376,602.04,601.38,0.28915062]
[1743270130676,1.09100416,602.05,601.38,0.28915062]
[1743270130883,1.09100416,602.03,601.29,1.24374785]
[1743270131077,1.09100416,602.02,601.38,1.24374785]
[1743270131683,1.09100416,602.01,601.38,1.24374785]
[1743270132080,1.09100416,602.01,601.36,1.24374785]
[1743270132284,1.09100416,602.0,601.36,1.24374785]
[1743270133079,0.955,602.11,601.36,1.24374785]
[1743270133383,5.09811984,602.1,601.36,1.24374785]
[1743270133585,0.955,602.11,601.21,1.49249743]
[1743270133586,4.43367039,602.09,601.39,1.24374785]
[1743270133784,4.43367039,602.08,601.39,1.24374785]
[1743270134079,4.43400099,602.07,601.39,1.24374785]
[1743270134281,5.09860336,602.06,601.39,1.24374785]
[1743270134482,4.43400929,602.05,601.39,1.24374785]
[1743270134684,4.43400929,602.04,601.39,1.24374785]
[1743270134877,4.43400929,602.03,601.39,1.24374785]
[1743270135185,10.46551676,602.02,600.99,1.24374785]
[1743270135483,6.96468552,602.01,601.12,0.28925276]
[1743270135680,1.64898484,601.98,600.99,1.24374785]
[1743270135884,1.64898484,601.92,601.0,0.28933333]
[1743270136084,1.64898484,601.89,601.0,0.28933333]
[1743270136283,4.5761453,601.88,600.99,1.24374785]
[1743270136487,6.79843769,601.87,600.99,1.24374785]
[1743270136685,5.09866336,601.86,600.99,1.24374785]
[1743270136883,5.09866336,601.85,600.99,1.24374785]
[1743270137085,4.43400929,601.84,600.89,0.2893634]
[1743270137282,5.09892257,601.83,600.89,0.2893634]
[1743270137479,5.09892257,601.82,600.89,0.2893634]
[1743270137682,3.50087211,601.84,600.89,0.2893634]
[1743270137683,3.57919908,601.81,600.89,0.2893634]
[1743270137881,4.43252719,601.8,600.89,0.2893634]
[1743270138081,4.43252719,601.79,600.89,0.2893634]
[1743270138286,3.57919908,601.78,600.89,0.2893634]
[1743270138583,3.57919908,601.77,600.89,0.2893634]
[1743270138886,3.57919908,601.76,600.89,0.2893634]
[1743270139084,1.37661503,601.75,600.89,0.2893634]
[1743270139283,2.83632268,601.77,600.89,0.2893634]
[1743270139687,1.062,601.78,600.89,0.2893634]
[1743270140690,1.08763062,601.77,600.89,0.2893634]
[1743270141289,1.062,601.78,600.89,0.2893634]
[1743270142591,1.05298464,601.78,600.89,0.2893634]
[1743270142791,1.05298464,601.78,600.89,0.33283962]
[1743270143087,1.375,601.77,600.89,0.33283962]
[1743270143292,1.375,601.77,600.89,0.62225356]
[1743270145786,1.375,601.77,600.89,0.33283962]
[1743270146186,1.375,601.77,600.89,0.6221537]
[1743270146988,1.433,601.76,600.89,0.6221537]
[1743270147189,2.52012103,601.76,600.89,0.6221537]
[1743270147785,1.08712103,601.75,600.89,0.6221537]
[1743270148588,1.433,601.76,600.89,0.6221537]
[1743270148792,1.433,601.76,600.89,0.33283962]
[1743270149187,1.433,601.76,600.89,0.62215491]
[1743270151795,1.433,601.76,600.89,0.33283962]
[1743270152193,1.433,601.76,600.89,0.62214769]
[1743270154189,1.433,601.76,600.96,1.24374785]
[1743270154391,1.433,601.76,600.97,0.33279531]
[1743270155596,1.433,601.76,600.97,1.57654316]
[1743270156991,1.433,601.76,600.97,0.33279531]
[1743270158500,1.433,601.76,600.98,1.24374785]
[1743270158694,1.433,601.76,600.99,0.33278423]
[1743270160196,1.264,601.75,600.99,0.33278423]
[1743270162202,1.264,601.75,601.33,1.24374785]
[1743270163706,1.264,601.75,601.27,1.24374785]
[1743270165403,1.264,601.75,601.31,1.24374785]
[1743270168908,1.264,601.75,601.17,0.28922993]
[1743270171010,1.809,601.74,601.17,0.28922993]
[1743270171314,1.64890614,602.18,601.17,0.28922993]
[1743270171516,5.09129284,602.17,601.17,0.28922993]
[1743270171718,6.45672493,602.16,601.17,0.28922993]
[1743270172014,6.45672493,602.15,601.17,0.28922993]
[1743270172216,6.45672493,602.14,601.17,0.28922993]
[1743270172417,6.45672493,602.13,601.17,0.28922993]
[1743270172608,6.4570025,602.12,601.17,0.28922993]
[1743270172813,5.09129284,602.11,601.17,0.28922993]
[1743270173010,5.09129284,602.1,601.17,0.28922993]
[1743270173209,3.49644723,602.13,601.17,0.28922993]
[1743270173210,5.09131848,602.09,601.17,0.28922993]
[1743270173415,5.09131848,602.08,600.99,0.33278423]
[1743270173720,6.73653325,602.07,601.1,0.28929965]
[1743270173916,5.09131848,602.06,601.1,0.28929965]
[1743270174111,5.09131848,602.05,600.99,0.33278423]
[1743270174310,6.95594388,602.04,601.1,0.28930206]
[1743270174514,6.95687371,602.03,601.1,0.28930206]
[1743270174713,6.95687371,602.02,600.99,0.33278423]
[1743270174916,6.95687371,602.01,601.09,0.28930807]
[1743270175222,12.10222708,602.0,600.99,0.33278423]
[1743270175526,6.45834527,601.99,601.09,0.28931168]
[1743270175717,6.45834527,601.98,601.09,0.28931168]
[1743270175919,6.45834527,601.97,600.99,1.57653208]
[1743270176222,6.61393183,601.96,601.09,0.28929965]
[1743270176520,4.42728291,601.95,600.99,1.57653208]
[1743270176717,4.42728291,601.94,600.99,1.57653208]
[1743270176917,4.42728291,601.93,601.09,0.28930326]
[1743270177122,4.42728291,601.92,600.99,1.57653208]
[1743270177317,3.57327451,601.91,600.99,1.57653208]
[1743270177524,3.57327451,601.9,601.09,0.28930687]
[1743270177723,1.37433635,601.89,600.99,1.57653208]
[1743270177919,1.37433635,601.88,600.99,1.57653208]
[1743270178123,1.37433635,601.87,601.09,0.28931048]
[1743270178325,2.83181576,601.9,600.99,1.57653208]
[1743270178326,1.37433635,601.86,601.06,1.24374785]
[1743270178521,1.37433635,601.85,601.06,1.24374785]
[1743270178719,1.37433635,601.84,601.09,0.28931408]
[1743270178919,2.83181576,601.87,601.09,0.28931408]
[1743270179125,1.08915991,601.83,601.09,0.28931408]
[1743270179625,1.08915991,601.82,601.09,0.28931408]
[1743270180419,1.08915991,601.81,601.09,0.28931408]
[1743270180820,1.08915991,601.8,601.14,1.24374785]
[1743270181124,1.37759313,601.79,601.14,1.24374785]
[1743270181324,1.37759313,601.78,601.14,1.24374785]
[1743270181525,1.37759313,601.77,601.14,1.24374785]
[1743270181726,1.37759313,601.76,601.14,1.24374785]
[1743270181928,1.08915991,601.77,601.14,1.24374785]
[1743270182127,1.37804303,601.76,601.14,1.24374785]
[1743270182427,1.37804303,601.75,601.14,1.24374785]
[1743270182620,1.37804303,601.74,601.09,0.28931408]
[1743270182820,1.08915991,601.75,601.09,0.28931408]
[1743270183021,1.37836116,601.74,601.09,0.28931408]
[1743270183223,1.08915991,601.75,601.09,0.28931408]
[1743270183420,2.46784416,601.74,601.09,0.28931408]
[1743270183621,1.37868425,601.73,601.09,0.28931408]
[1743270183819,1.08915991,601.73,601.09,0.28931408]
[1743270184422,1.08915991,601.72,601.09,0.28931408]
[1743270185229,1.08915991,601.71,601.09,0.28931408]
[1743270185830,2.03460978,601.89,601.09,0.28931408]
[1743270186026,4.44138189,601.88,601.09,0.28931408]
[1743270186227,4.44138189,601.87,601.09,0.28931408]
[1743270186424,3.58514023,601.86,601.09,0.28931408]
[1743270186730,4.44127949,601.85,601.09,0.28931408]
[1743270186931,4.44131211,601.84,601.09,0.28931408]
[1743270187125,3.58507418,601.83,601.09,0.28931408]
[1743270187324,1.37890009,601.82,601.09,0.28931408]
[1743270187525,1.37890009,601.81,601.09,0.28931408]
[1743270187724,2.47160729,601.8,601.09,0.28931408]
[1743270187926,1.37890009,601.79,601.16,1.24374785]
[1743270188129,1.0927072,601.8,601.16,1.24374785]
[1743270188328,1.37888382,601.79,601.16,1.24374785]
[1743270188529,1.0927072,601.79,601.16,1.24374785]
[1743270188933,3.06265633,601.94,601.16,1.24374785]
[1743270189231,3.58534177,601.93,601.16,1.24374785]
[1743270189427,1.37899421,601.92,601.16,1.24374785]
[1743270189632,1.37899421,601.91,601.16,1.24374785]
[1743270189833,1.37899421,601.9,601.16,1.24374785]
[1743270190028,1.37899421,601.89,601.16,1.24374785]
[1743270190229,1.09285245,601.88,601.16,1.24374785]
[1743270191034,1.09285245,601.87,601.13,1.24374785]
[1743270191428,1.602,601.86,601.13,1.24374785]
[1743270192837,1.602,601.86,601.12,0.28928041]
[1743270192838,1.602,601.86,601.23,1.24374785]
[1743270194738,1.602,601.86,601.12,0.28928041]
[1743270196641,1.09313122,601.85,601.12,0.28928041]
[1743270196937,1.3795455,601.84,601.12,0.28928041]
[1743270197236,1.3795455,601.83,601.12,0.28928041]
[1743270197437,1.3795455,601.82,601.12,0.28928041]
[1743270197638,1.3795455,601.81,601.12,0.28928041]
[1743270197836,2.2365149,601.8,601.12,0.28928041]
[1743270198041,2.2365149,601.79,601.12,0.28928041]
[1743270198242,2.23688372,601.78,601.12,0.28928041]
[1743270198546,1.3795455,601.77,601.12,0.28928041]
[1743270198739,1.3795455,601.76,601.12,0.28928041]
[1743270198938,1.3795455,601.75,601.12,0.28928041]
[1743270199138,1.09313122,601.74,601.12,0.28928041]
[1743270199742,1.109,601.79,601.12,0.28928041]
[1743270199945,1.38073834,601.78,600.99,0.33278423]
[1743270200246,1.109,601.79,601.12,0.28930807]
[1743270200447,1.38098731,601.78,600.99,0.33278423]
[1743270200648,1.3809879,601.77,600.99,0.33278423]
[1743270200847,1.09440683,601.78,601.12,0.28931649]
[1743270201147,1.38098925,601.77,601.22,1.24374785]
[1743270201342,1.09440683,601.77,601.22,1.24374785]
[1743270202049,1.09440683,601.76,601.22,1.24374785]
[1743270202649,1.09440683,601.75,601.26,1.24374785]
[1743270203250,1.09440683,601.74,601.26,1.24374785]
[1743270203846,1.09440683,601.73,601.26,1.24374785]
[1743270204346,1.109,601.79,601.14,0.28928883]
[1743270205052,1.0945987,601.78,601.14,0.28928883]
[1743270205449,1.38129665,601.77,601.05,1.24374785]
[1743270205650,1.38129665,601.76,601.06,0.28933694]
[1743270205846,1.38129665,601.75,601.06,0.28933694]
[1743270206153,2.47589535,601.74,601.06,0.28933694]
[1743270206351,1.38129665,601.73,601.06,0.28933694]
[1743270206553,1.38117902,601.72,601.06,0.28933694]
[1743270206748,1.0945987,601.73,601.06,0.28933694]
[1743270207054,1.0945987,601.71,601.06,0.28933694]
[1743270207749,1.109,601.79,601.07,1.24374785]
[1743270207952,1.38099089,601.78,601.07,1.24374785]
[1743270208153,1.109,601.79,601.07,1.24374785]
[1743270208553,1.0944038,601.78,601.07,1.24374785]
[1743270208753,1.0944038,601.77,601.07,1.24374785]
[1743270209456,1.0944038,601.76,601.13,1.24374785]
[1743270209950,1.109,601.79,601.13,1.24374785]
[1743270209951,1.0944038,601.75,601.13,1.24374785]
[1743270210146,2.5954038,601.75,601.13,1.24374785]
[1743270210351,1.501,601.75,601.13,1.24374785]
[1743270210754,1.501,601.75,601.31,1.24374785]
[1743270211758,1.175,601.74,601.31,1.24374785]
[1743270212554,1.175,601.74,601.3,1.24374785]
[1743270214958,1.175,601.74,601.26,1.24374785]
[1743270217260,1.175,601.74,601.21,1.24374785]
[1743270219161,1.175,601.74,601.3,1.24374785]
[1743270221964,1.175,601.74,601.39,1.24374785]
[1743270223365,1.175,601.74,601.35,1.24374785]